[Event "Titled Tuesday Blitz April 11 Late 2023"]
[White "Urazayev, Arystanbek"]
[Black "Kaplan, Avi Harrison"]
[WhiteFideId "13709810"]
[BlackFideId "30934559"]
[WhiteElo "2449"]
[BlackElo "1983"]
[Result "1-0"]
[Round "08"]
[TimeControl "180+2"]
[Date "2023.04.11"]
[WhiteClock "0:02:00"]
[BlackClock "0:00:18"]

1. c4 {[%clk 0:03:00]}  Nf6 {[%clk 0:02:44]} 2. Nc3 {[%clk 0:02:58]}  a6 {[%clk 0:02:44]} 3. e4 {[%clk 0:02:58]}  e5 {[%clk 0:02:43]} 4. Nf3 {[%clk 0:02:57]}  Nc6 {[%clk 0:02:43]} 5. d4 {[%clk 0:02:54]}  exd4 {[%clk 0:02:42]} 6. Nxd4 {[%clk 0:02:55]}  Bc5 {[%clk 0:02:39]} 7. Be3 {[%clk 0:02:56]}  Nxd4 {[%clk 0:02:36]} 8. Bxd4 {[%clk 0:02:56]}  Bxd4 {[%clk 0:02:34]} 9. Qxd4 {[%clk 0:02:57]}  O-O {[%clk 0:02:35]} 10. e5 {[%clk 0:02:54]}  Re8 {[%clk 0:02:34]} 11. Be2 {[%clk 0:02:54]}  c5 {[%clk 0:02:14]} 12. Qf4 {[%clk 0:02:47]}  Qc7 {[%clk 0:02:07]} 13. O-O {[%clk 0:02:45]}  Qxe5 {[%clk 0:02:06]} 14. Qxe5 {[%clk 0:02:45]}  Rxe5 {[%clk 0:02:07]} 15. Bf3 {[%clk 0:02:46]}  Rb8 {[%clk 0:01:57]} 16. a4 {[%clk 0:02:42]}  b6 {[%clk 0:01:56]} 17. Rfe1 {[%clk 0:02:21]}  Rxe1+ {[%clk 0:01:50]} 18. Rxe1 {[%clk 0:02:22]}  Bb7 {[%clk 0:01:51]} 19. Bxb7 {[%clk 0:02:22]}  Rxb7 {[%clk 0:01:52]} 20. Nd5 {[%clk 0:02:23]}  Kf8 {[%clk 0:01:45]} 21. Nc3 {[%clk 0:02:11]}  Rb8 {[%clk 0:01:39]} 22. f3 {[%clk 0:02:11]}  Re8 {[%clk 0:01:39]} 23. Rd1 {[%clk 0:02:12]}  Ke7 {[%clk 0:01:26]} 24. g4 {[%clk 0:02:10]}  Kd8 {[%clk 0:01:22]} 25. g5 {[%clk 0:02:07]}  Nh5 {[%clk 0:01:22]} 26. Nd5 {[%clk 0:02:07]}  Re6 {[%clk 0:01:21]} 27. Kf2 {[%clk 0:02:06]}  f6 {[%clk 0:01:09]} 28. h4 {[%clk 0:02:06]}  fxg5 {[%clk 0:01:07]} 29. hxg5 {[%clk 0:02:07]}  g6 {[%clk 0:01:00]} 30. Rd3 {[%clk 0:02:00]}  Kc8 {[%clk 0:00:56]} 31. Rb3 {[%clk 0:01:57]}  Kb7 {[%clk 0:00:32]} 32. a5 {[%clk 0:01:57]}  b5 {[%clk 0:00:32]} 33. cxb5 {[%clk 0:01:54]}  axb5 {[%clk 0:00:33]} 34. Rxb5+ {[%clk 0:01:55]}  Kc6 {[%clk 0:00:29]} 35. Nc3 {[%clk 0:01:56]}  Re8 {[%clk 0:00:26]} 36. Rb6+ {[%clk 0:01:55]}  Kc7 {[%clk 0:00:25]} 37. Nb5+ {[%clk 0:01:56]}  Kd8 {[%clk 0:00:23]} 38. Rb8+ {[%clk 0:01:56]}  Ke7 {[%clk 0:00:24]} 39. Rxe8+ {[%clk 0:01:57]}  Kxe8 {[%clk 0:00:25]} 40. a6 {[%clk 0:01:58]}  Nf4 {[%clk 0:00:21]} 41. a7 {[%clk 0:01:59]}  Nd3+ {[%clk 0:00:20]} 42. Ke3 {[%clk 0:01:59]}  Nxb2 {[%clk 0:00:21]} 43. a8=Q+ {[%clk 0:02:00]}  Ke7 {[%clk 0:00:21]} 44. Qd5 {[%clk 0:02:00]}  Na4 {[%clk 0:00:21]} 45. Qd6+ {[%clk 0:02:00]}  Ke8 {[%clk 0:00:20]} 46. Nc7+ {[%clk 0:02:01]}  Kd8 {[%clk 0:00:20]} 47. Nd5 {[%clk 0:02:00]}  c4 {[%clk 0:00:18]} 48. Qf8# {[%clk 0:02:00]} 1-0


[Site "https://www.chess.com"]

[Event "Titled Tuesday Blitz April 11 Late 2023"]
[White "Fernandez, Maria Florencia"]
[Black "Tanenbaum, Zachary"]
[WhiteFideId "116459"]
[BlackFideId "2060850"]
[WhiteElo "2120"]
[BlackElo "2175"]
[Result "0-1"]
[Round "08"]
[TimeControl "180+2"]
[Date "2023.04.11"]
[WhiteClock "0:00:48"]
[BlackClock "0:01:57"]

1. d4 {[%clk 0:03:00]}  d5 {[%clk 0:02:59]} 2. c4 {[%clk 0:03:01]}  dxc4 {[%clk 0:03:00]} 3. Nc3 {[%clk 0:03:01]}  e5 {[%clk 0:03:00]} 4. e3 {[%clk 0:02:59]}  exd4 {[%clk 0:02:59]} 5. exd4 {[%clk 0:03:00]}  Nf6 {[%clk 0:03:00]} 6. Bxc4 {[%clk 0:03:00]}  Bd6 {[%clk 0:03:00]} 7. h3 {[%clk 0:02:53]}  O-O {[%clk 0:02:59]} 8. Nf3 {[%clk 0:02:52]}  Re8+ {[%clk 0:02:58]} 9. Be3 {[%clk 0:02:52]}  h6 {[%clk 0:02:36]} 10. O-O {[%clk 0:02:51]}  Nc6 {[%clk 0:02:36]} 11. a3 {[%clk 0:02:26]}  Bf5 {[%clk 0:02:33]} 12. b4 {[%clk 0:02:20]}  Qd7 {[%clk 0:02:31]} 13. Bd3 {[%clk 0:01:56]}  Bxh3 {[%clk 0:02:26]} 14. b5 {[%clk 0:01:08]}  Bxg2 {[%clk 0:01:57]} 15. bxc6 {[%clk 0:00:48]}  Qh3 {[%clk 0:01:57]} 0-1


[Site "https://www.chess.com"]

[Event "Titled Tuesday Blitz April 11 Late 2023"]
[White "Mordechai, Hanan"]
[Black "Adewumi, Tanitoluwa"]
[WhiteFideId "2804166"]
[BlackFideId "30966396"]
[WhiteElo "2324"]
[BlackElo "2283"]
[Result "0-1"]
[Round "08"]
[TimeControl "180+2"]
[Date "2023.04.11"]
[WhiteClock "0:00:16"]
[BlackClock "0:00:10"]

1. e4 {[%clk 0:03:00]}  c5 {[%clk 0:02:23]} 2. Nf3 {[%clk 0:02:58]}  e6 {[%clk 0:02:23]} 3. d4 {[%clk 0:02:56]}  cxd4 {[%clk 0:02:23]} 4. Nxd4 {[%clk 0:02:57]}  Nc6 {[%clk 0:02:24]} 5. Nc3 {[%clk 0:02:53]}  Qc7 {[%clk 0:02:23]} 6. Be3 {[%clk 0:02:49]}  a6 {[%clk 0:02:22]} 7. Qd2 {[%clk 0:02:47]}  Nf6 {[%clk 0:02:20]} 8. f3 {[%clk 0:02:09]}  d5 {[%clk 0:02:16]} 9. exd5 {[%clk 0:02:04]}  exd5 {[%clk 0:02:13]} 10. O-O-O {[%clk 0:02:03]}  Bd6 {[%clk 0:02:02]} 11. Kb1 {[%clk 0:01:57]}  O-O {[%clk 0:02:00]} 12. g4 {[%clk 0:01:53]}  Be6 {[%clk 0:01:53]} 13. g5 {[%clk 0:01:45]}  Nh5 {[%clk 0:01:42]} 14. Nxe6 {[%clk 0:01:30]}  fxe6 {[%clk 0:01:41]} 15. Nxd5 {[%clk 0:01:31]}  exd5 {[%clk 0:01:38]} 16. Qxd5+ {[%clk 0:01:32]}  Rf7 {[%clk 0:01:27]} 17. Qxd6 {[%clk 0:01:31]}  Rd8 {[%clk 0:01:25]} 18. Qxc7 {[%clk 0:01:15]}  Rxd1+ {[%clk 0:01:23]} 19. Bc1 {[%clk 0:01:16]}  Rxc1+ {[%clk 0:01:24]} 20. Kxc1 {[%clk 0:01:16]}  Rxc7 {[%clk 0:01:25]} 21. Bc4+ {[%clk 0:01:15]}  Kf8 {[%clk 0:01:24]} 22. Rd1 {[%clk 0:01:15]}  Ne5 {[%clk 0:01:19]} 23. Bd5 {[%clk 0:01:13]}  Nf4 {[%clk 0:01:17]} 24. Be4 {[%clk 0:01:13]}  g6 {[%clk 0:01:06]} 25. Rd8+ {[%clk 0:01:12]}  Ke7 {[%clk 0:01:03]} 26. Rb8 {[%clk 0:01:09]}  Nfd3+ {[%clk 0:00:51]} 27. Kb1 {[%clk 0:00:55]}  Nc5 {[%clk 0:00:48]} 28. Bd5 {[%clk 0:00:55]}  b5 {[%clk 0:00:44]} 29. f4 {[%clk 0:00:49]}  Rd7 {[%clk 0:00:40]} 30. b4 {[%clk 0:00:31]}  Rxd5 {[%clk 0:00:33]} 31. bxc5 {[%clk 0:00:31]}  Nc4 {[%clk 0:00:33]} 32. Rb7+ {[%clk 0:00:28]}  Ke6 {[%clk 0:00:25]} 33. Kc1 {[%clk 0:00:28]}  Rxc5 {[%clk 0:00:23]} 34. Rxh7 {[%clk 0:00:28]}  Na3 {[%clk 0:00:20]} 35. Rg7 {[%clk 0:00:24]}  Rxc2+ {[%clk 0:00:19]} 36. Kd1 {[%clk 0:00:24]}  Rxa2 {[%clk 0:00:20]} 37. Rxg6+ {[%clk 0:00:24]}  Ke7 {[%clk 0:00:19]} 38. h4 {[%clk 0:00:22]}  b4 {[%clk 0:00:19]} 39. Rb6 {[%clk 0:00:18]}  a5 {[%clk 0:00:18]} 40. h5 {[%clk 0:00:18]}  Nc4 {[%clk 0:00:19]} 41. Rb7+ {[%clk 0:00:18]}  Ke6 {[%clk 0:00:18]} 42. h6 {[%clk 0:00:18]}  Rh2 {[%clk 0:00:18]} 43. h7 {[%clk 0:00:18]}  Ne3+ {[%clk 0:00:15]} 44. Kc1 {[%clk 0:00:17]}  Nf5 {[%clk 0:00:14]} 45. g6 {[%clk 0:00:17]}  Kf6 {[%clk 0:00:13]} 46. Rb6+ {[%clk 0:00:16]}  Kg7 {[%clk 0:00:13]} 47. Rb5 {[%clk 0:00:16]}  Kxg6 {[%clk 0:00:13]} 48. Rxa5 {[%clk 0:00:16]}  Rxh7 {[%clk 0:00:12]} 49. Rb5 {[%clk 0:00:17]}  Rh1+ {[%clk 0:00:11]} 50. Kb2 {[%clk 0:00:16]}  Rh2+ {[%clk 0:00:11]} 51. Kb3 {[%clk 0:00:16]}  Nd4+ {[%clk 0:00:10]} 0-1


[Site "https://www.chess.com"]

[Event "Titled Tuesday Blitz April 11 Late 2023"]
[White "Spitzl, Vinzent"]
[Black "Poliakova, Varvara"]
[WhiteFideId "12901253"]
[BlackFideId "13518313"]
[WhiteElo "2225"]
[BlackElo "2075"]
[Result "1/2-1/2"]
[Round "08"]
[TimeControl "180+2"]
[Date "2023.04.11"]
[WhiteClock "0:00:15"]
[BlackClock "0:00:59"]

1. e4 {[%clk 0:02:34]}  e5 {[%clk 0:02:56]} 2. Nf3 {[%clk 0:02:35]}  Nc6 {[%clk 0:02:55]} 3. Bc4 {[%clk 0:02:35]}  Bc5 {[%clk 0:02:55]} 4. d3 {[%clk 0:02:33]}  Nf6 {[%clk 0:02:55]} 5. O-O {[%clk 0:02:32]}  d6 {[%clk 0:02:55]} 6. c3 {[%clk 0:02:33]}  a6 {[%clk 0:02:53]} 7. h3 {[%clk 0:02:30]}  Ba7 {[%clk 0:02:53]} 8. a4 {[%clk 0:02:28]}  h6 {[%clk 0:02:50]} 9. Re1 {[%clk 0:02:28]}  O-O {[%clk 0:02:48]} 10. Be3 {[%clk 0:02:28]}  Bxe3 {[%clk 0:02:45]} 11. Rxe3 {[%clk 0:02:29]}  d5 {[%clk 0:02:43]} 12. exd5 {[%clk 0:02:19]}  Nxd5 {[%clk 0:02:44]} 13. Bxd5 {[%clk 0:02:19]}  Qxd5 {[%clk 0:02:45]} 14. d4 {[%clk 0:02:19]}  Rd8 {[%clk 0:02:37]} 15. Na3 {[%clk 0:02:12]}  exd4 {[%clk 0:02:36]} 16. Nxd4 {[%clk 0:02:10]}  Nxd4 {[%clk 0:02:35]} 17. Qxd4 {[%clk 0:02:10]}  Qxd4 {[%clk 0:02:32]} 18. cxd4 {[%clk 0:02:11]}  Be6 {[%clk 0:02:30]} 19. Nc2 {[%clk 0:02:10]}  Rd5 {[%clk 0:02:26]} 20. b4 {[%clk 0:02:05]}  a5 {[%clk 0:02:25]} 21. b5 {[%clk 0:02:01]}  Rc8 {[%clk 0:02:19]} 22. Rc3 {[%clk 0:02:00]}  c6 {[%clk 0:02:18]} 23. bxc6 {[%clk 0:01:56]}  Rxc6 {[%clk 0:02:19]} 24. Rxc6 {[%clk 0:01:55]}  bxc6 {[%clk 0:02:20]} 25. Rb1 {[%clk 0:01:51]}  Bf5 {[%clk 0:02:17]} 26. Rb8+ {[%clk 0:01:50]}  Kh7 {[%clk 0:02:17]} 27. Ne3 {[%clk 0:01:50]}  Rxd4 {[%clk 0:02:08]} 28. Nxf5 {[%clk 0:01:50]}  Rxa4 {[%clk 0:02:09]} 29. Rc8 {[%clk 0:01:49]}  Rc4 {[%clk 0:02:05]} 30. Nd6 {[%clk 0:01:49]}  Rc1+ {[%clk 0:02:03]} 31. Kh2 {[%clk 0:01:49]}  a4 {[%clk 0:02:03]} 32. Ra8 {[%clk 0:01:49]}  Ra1 {[%clk 0:01:55]} 33. Nc4 {[%clk 0:01:49]}  h5 {[%clk 0:01:48]} 34. Kg3 {[%clk 0:01:49]}  g5 {[%clk 0:01:47]} 35. Kf3 {[%clk 0:01:34]}  f5 {[%clk 0:01:43]} 36. Ra6 {[%clk 0:01:28]}  Ra2 {[%clk 0:01:40]} 37. Rxc6 {[%clk 0:01:23]}  g4+ {[%clk 0:01:39]} 38. hxg4 {[%clk 0:01:23]}  hxg4+ {[%clk 0:01:40]} 39. Kg3 {[%clk 0:01:22]}  Rc2 {[%clk 0:01:32]} 40. Ne5 {[%clk 0:01:21]}  Rxc6 {[%clk 0:01:27]} 41. Nxc6 {[%clk 0:01:21]}  Kg6 {[%clk 0:01:25]} 42. Kf4 {[%clk 0:01:19]}  Kf6 {[%clk 0:01:25]} 43. Nb4 {[%clk 0:01:12]}  a3 {[%clk 0:01:21]} 44. f3 {[%clk 0:01:09]}  gxf3 {[%clk 0:01:17]} 45. gxf3 {[%clk 0:01:09]}  Ke6 {[%clk 0:01:14]} 46. Kg5 {[%clk 0:01:09]}  Ke5 {[%clk 0:01:12]} 47. f4+ {[%clk 0:01:10]}  Ke4 {[%clk 0:01:11]} 48. Na2 {[%clk 0:01:08]}  Kd3 {[%clk 0:01:06]} 49. Kxf5 {[%clk 0:01:05]}  Kc2 {[%clk 0:01:05]} 50. Ke4 {[%clk 0:01:00]}  Kb2 {[%clk 0:01:03]} 51. Nb4 {[%clk 0:00:48]}  Kc3 {[%clk 0:01:00]} 52. Na2+ {[%clk 0:00:27]}  Kb2 {[%clk 0:01:00]} 53. Nb4 {[%clk 0:00:16]}  Kc3 {[%clk 0:00:59]} 54. Na2+ {[%clk 0:00:15]}  Kb2 {[%clk 0:00:59]} 1/2-1/2


[Site "https://www.chess.com"]

[Event "Titled Tuesday Blitz April 11 Late 2023"]
[White "Womacka, Mathias"]
[Black "Alimpic, Aleksa"]
[WhiteFideId "4611390"]
[BlackFideId "974323"]
[WhiteElo "2377"]
[BlackElo "2273"]
[Result "0-1"]
[Round "08"]
[TimeControl "180+2"]
[Date "2023.04.11"]
[WhiteClock "0:00:03"]
[BlackClock "0:00:12"]

1. e4 {[%clk 0:03:00]}  g6 {[%clk 0:02:57]} 2. d4 {[%clk 0:02:59]}  Bg7 {[%clk 0:02:57]} 3. Nc3 {[%clk 0:03:00]}  a6 {[%clk 0:02:58]} 4. f4 {[%clk 0:02:58]}  d5 {[%clk 0:02:56]} 5. Nxd5 {[%clk 0:02:53]}  e6 {[%clk 0:02:54]} 6. Ne3 {[%clk 0:02:49]}  Qxd4 {[%clk 0:02:52]} 7. Qxd4 {[%clk 0:02:47]}  Bxd4 {[%clk 0:02:53]} 8. Nf3 {[%clk 0:02:46]}  Bg7 {[%clk 0:02:51]} 9. e5 {[%clk 0:02:33]}  Ne7 {[%clk 0:02:50]} 10. Bd3 {[%clk 0:02:28]}  O-O {[%clk 0:02:47]} 11. Bd2 {[%clk 0:02:27]}  b6 {[%clk 0:02:23]} 12. Be4 {[%clk 0:02:24]}  Ra7 {[%clk 0:02:21]} 13. Bb4 {[%clk 0:02:13]}  c5 {[%clk 0:02:19]} 14. Bc3 {[%clk 0:02:12]}  Rd8 {[%clk 0:02:17]} 15. O-O {[%clk 0:01:51]}  Bb7 {[%clk 0:02:09]} 16. Bxb7 {[%clk 0:01:48]}  Rxb7 {[%clk 0:02:09]} 17. Nc4 {[%clk 0:01:31]}  Nd5 {[%clk 0:01:44]} 18. Rad1 {[%clk 0:01:16]}  Rbd7 {[%clk 0:01:35]} 19. Ng5 {[%clk 0:00:43]}  b5 {[%clk 0:00:49]} 20. Na5 {[%clk 0:00:32]}  Nxc3 {[%clk 0:00:43]} 21. Rxd7 {[%clk 0:00:27]}  Rxd7 {[%clk 0:00:44]} 22. bxc3 {[%clk 0:00:27]}  c4 {[%clk 0:00:33]} 23. Ne4 {[%clk 0:00:25]}  Bf8 {[%clk 0:00:33]} 24. Nf6+ {[%clk 0:00:24]}  Kg7 {[%clk 0:00:31]} 25. Nxd7 {[%clk 0:00:24]}  Nxd7 {[%clk 0:00:32]} 26. Rd1 {[%clk 0:00:22]}  Bc5+ {[%clk 0:00:30]} 27. Kf1 {[%clk 0:00:22]}  Nb6 {[%clk 0:00:31]} 28. Nb7 {[%clk 0:00:19]}  Be3 {[%clk 0:00:27]} 29. g3 {[%clk 0:00:18]}  Nd5 {[%clk 0:00:28]} 30. Re1 {[%clk 0:00:11]}  Bb6 {[%clk 0:00:27]} 31. Nd6 {[%clk 0:00:09]}  Nxc3 {[%clk 0:00:27]} 32. Nc8 {[%clk 0:00:08]}  Bc5 {[%clk 0:00:25]} 33. Kg2 {[%clk 0:00:05]}  Nd5 {[%clk 0:00:24]} 34. Kf3 {[%clk 0:00:05]}  Nb4 {[%clk 0:00:23]} 35. c3 {[%clk 0:00:04]}  Nxa2 {[%clk 0:00:20]} 36. Ra1 {[%clk 0:00:04]}  Nxc3 {[%clk 0:00:21]} 37. Rxa6 {[%clk 0:00:04]}  Nd5 {[%clk 0:00:16]} 38. Nd6 {[%clk 0:00:03]}  c3 {[%clk 0:00:12]} 0-1


[Site "https://www.chess.com"]

[Event "Titled Tuesday Blitz April 11 Late 2023"]
[White "Skaric, Djuro"]
[Black "Ladan, Nicholas"]
[WhiteFideId "934569"]
[BlackFideId "30918855"]
[WhiteElo "2282"]
[BlackElo "2167"]
[Result "1-0"]
[Round "08"]
[TimeControl "180+2"]
[Date "2023.04.11"]
[WhiteClock "0:00:59"]
[BlackClock "0:00:07"]

1. g3 {[%clk 0:03:00]}  d5 {[%clk 0:02:59]} 2. Bg2 {[%clk 0:03:01]}  Bg4 {[%clk 0:02:59]} 3. Nf3 {[%clk 0:02:55]}  Nd7 {[%clk 0:02:54]} 4. h3 {[%clk 0:02:54]}  Bxf3 {[%clk 0:02:53]} 5. Bxf3 {[%clk 0:02:53]}  c6 {[%clk 0:02:49]} 6. Bg2 {[%clk 0:02:54]}  e5 {[%clk 0:02:49]} 7. d3 {[%clk 0:02:54]}  Bd6 {[%clk 0:02:49]} 8. O-O {[%clk 0:02:54]}  Ngf6 {[%clk 0:02:46]} 9. Nc3 {[%clk 0:02:54]}  O-O {[%clk 0:02:45]} 10. e4 {[%clk 0:02:54]}  Nb6 {[%clk 0:02:39]} 11. f4 {[%clk 0:02:52]}  exf4 {[%clk 0:02:37]} 12. gxf4 {[%clk 0:02:52]}  dxe4 {[%clk 0:02:31]} 13. dxe4 {[%clk 0:02:52]}  Bc5+ {[%clk 0:02:28]} 14. Kh2 {[%clk 0:02:52]}  Nc4 {[%clk 0:02:26]} 15. e5 {[%clk 0:02:50]}  Nd7 {[%clk 0:01:56]} 16. Qf3 {[%clk 0:02:46]}  Qe7 {[%clk 0:01:44]} 17. b3 {[%clk 0:02:39]}  Ncb6 {[%clk 0:01:40]} 18. Ne4 {[%clk 0:02:38]}  f6 {[%clk 0:01:30]} 19. Nxc5 {[%clk 0:02:29]}  Nxc5 {[%clk 0:01:26]} 20. Ba3 {[%clk 0:02:23]}  Nbd7 {[%clk 0:01:09]} 21. Rae1 {[%clk 0:02:19]}  fxe5 {[%clk 0:01:08]} 22. Qe3 {[%clk 0:02:16]}  Rae8 {[%clk 0:00:56]} 23. fxe5 {[%clk 0:02:02]}  Rxf1 {[%clk 0:00:54]} 24. Bxf1 {[%clk 0:02:00]}  b6 {[%clk 0:00:49]} 25. e6 {[%clk 0:01:57]}  Qxe6 {[%clk 0:00:43]} 26. Bc4 {[%clk 0:01:46]}  Kf7 {[%clk 0:00:35]} 27. Bxc5 {[%clk 0:01:40]}  Nxc5 {[%clk 0:00:33]} 28. Rf1+ {[%clk 0:01:37]}  Kg6 {[%clk 0:00:30]} 29. Qg3+ {[%clk 0:01:33]}  Kh6 {[%clk 0:00:28]} 30. Bxe6 {[%clk 0:01:31]}  Rxe6 {[%clk 0:00:29]} 31. Qf4+ {[%clk 0:01:29]}  Kh5 {[%clk 0:00:27]} 32. Qg4+ {[%clk 0:01:28]}  Kh6 {[%clk 0:00:26]} 33. Rg1 {[%clk 0:01:27]}  g6 {[%clk 0:00:23]} 34. Qf4+ {[%clk 0:01:27]}  Kg7 {[%clk 0:00:22]} 35. Rf1 {[%clk 0:01:27]}  Re2+ {[%clk 0:00:14]} 36. Kh1 {[%clk 0:01:25]}  Ne6 {[%clk 0:00:14]} 37. Qf6+ {[%clk 0:01:24]}  Kh6 {[%clk 0:00:14]} 38. Qh4+ {[%clk 0:01:23]}  Kg7 {[%clk 0:00:14]} 39. Qe7+ {[%clk 0:01:23]}  Kh6 {[%clk 0:00:14]} 40. Rf6 {[%clk 0:01:21]}  Re1+ {[%clk 0:00:14]} 41. Kh2 {[%clk 0:01:19]}  Re2+ {[%clk 0:00:14]} 42. Kg1 {[%clk 0:01:19]}  Nd4 {[%clk 0:00:09]} 43. Qf8+ {[%clk 0:01:14]}  Kg5 {[%clk 0:00:09]} 44. h4+ {[%clk 0:01:14]}  Kg4 {[%clk 0:00:08]} 45. Rf4+ {[%clk 0:01:13]}  Kg3 {[%clk 0:00:08]} 46. Rxd4 {[%clk 0:01:13]}  Re1+ {[%clk 0:00:08]} 47. Qf1 {[%clk 0:01:12]}  Rxf1+ {[%clk 0:00:07]} 48. Kxf1 {[%clk 0:01:12]}  c5 {[%clk 0:00:07]} 49. Rc4 {[%clk 0:01:10]}  h6 {[%clk 0:00:06]} 50. a4 {[%clk 0:01:08]}  a5 {[%clk 0:00:06]} 51. Ke2 {[%clk 0:01:05]}  g5 {[%clk 0:00:05]} 52. hxg5 {[%clk 0:01:04]}  hxg5 {[%clk 0:00:06]} 53. Rc3+ {[%clk 0:01:04]}  Kf4 {[%clk 0:00:06]} 54. Kf2 {[%clk 0:01:03]}  Ke4 {[%clk 0:00:06]} 55. Kg3 {[%clk 0:01:02]}  Kd4 {[%clk 0:00:06]} 56. Rd3+ {[%clk 0:01:00]}  Ke4 {[%clk 0:00:06]} 57. Kg4 {[%clk 0:01:00]}  c4 {[%clk 0:00:06]} 58. bxc4 {[%clk 0:01:00]}  Ke5 {[%clk 0:00:06]} 59. Kxg5 {[%clk 0:01:00]}  Ke4 {[%clk 0:00:07]} 60. Kf6 {[%clk 0:00:59]}  b5 {[%clk 0:00:07]} 61. cxb5 {[%clk 0:00:58]}  Kf4 {[%clk 0:00:05]} 62. Ke7 {[%clk 0:00:59]}  Ke5 {[%clk 0:00:05]} 63. Kd8 {[%clk 0:00:59]}  Ke4 {[%clk 0:00:05]} 64. Kc7 {[%clk 0:00:59]}  Ke5 {[%clk 0:00:06]} 65. Kb8 {[%clk 0:00:59]}  Ke4 {[%clk 0:00:07]} 1-0


[Site "https://www.chess.com"]

[Event "Titled Tuesday Blitz April 11 Late 2023"]
[White "Gurevich, Dmitry"]
[Black "Sarkar, Justin"]
[WhiteFideId "2000407"]
[BlackFideId "2010011"]
[WhiteElo "2506"]
[BlackElo "2189"]
[Result "1-0"]
[Round "08"]
[TimeControl "180+2"]
[Date "2023.04.11"]
[WhiteClock "0:00:08"]
[BlackClock "0:00:01"]

1. d4 {[%clk 0:03:00]}  d5 {[%clk 0:02:57]} 2. c4 {[%clk 0:03:01]}  dxc4 {[%clk 0:02:53]} 3. e4 {[%clk 0:03:00]}  Nc6 {[%clk 0:02:48]} 4. Be3 {[%clk 0:02:58]}  Nf6 {[%clk 0:02:41]} 5. Nc3 {[%clk 0:02:56]}  e5 {[%clk 0:02:36]} 6. d5 {[%clk 0:02:53]}  Na5 {[%clk 0:02:29]} 7. Qa4+ {[%clk 0:02:49]}  c6 {[%clk 0:02:26]} 8. dxc6 {[%clk 0:02:30]}  Nxc6 {[%clk 0:02:23]} 9. Bxc4 {[%clk 0:02:30]}  Bb4 {[%clk 0:02:18]} 10. Ne2 {[%clk 0:02:28]}  Nxe4 {[%clk 0:01:56]} 11. Bb5 {[%clk 0:02:09]}  Bd7 {[%clk 0:01:26]} 12. Bxc6 {[%clk 0:02:01]}  Bxc3+ {[%clk 0:01:25]} 13. Nxc3 {[%clk 0:01:51]}  Bxc6 {[%clk 0:01:24]} 14. Qa3 {[%clk 0:01:46]}  Nxc3 {[%clk 0:01:20]} 15. bxc3 {[%clk 0:01:44]}  Qd5 {[%clk 0:01:01]} 16. f3 {[%clk 0:01:38]}  f6 {[%clk 0:00:47]} 17. O-O {[%clk 0:01:35]}  Kf7 {[%clk 0:00:33]} 18. Rfd1 {[%clk 0:01:35]}  Qc4 {[%clk 0:00:33]} 19. Qb3 {[%clk 0:01:19]}  Qxb3 {[%clk 0:00:17]} 20. axb3 {[%clk 0:01:19]}  a6 {[%clk 0:00:17]} 21. Bb6 {[%clk 0:01:17]}  Rhe8 {[%clk 0:00:17]} 22. c4 {[%clk 0:01:14]}  Re7 {[%clk 0:00:13]} 23. Kf2 {[%clk 0:01:07]}  Rc8 {[%clk 0:00:11]} 24. Rd6 {[%clk 0:01:01]}  Rd7 {[%clk 0:00:08]} 25. Rxd7+ {[%clk 0:01:00]}  Bxd7 {[%clk 0:00:08]} 26. Ke3 {[%clk 0:00:59]}  Be6 {[%clk 0:00:07]} 27. Rd1 {[%clk 0:00:57]}  Rc6 {[%clk 0:00:05]} 28. c5 {[%clk 0:00:55]}  Ke7 {[%clk 0:00:02]} 29. b4 {[%clk 0:00:53]}  Rc8 {[%clk 0:00:01]} 30. g4 {[%clk 0:00:50]}  Bd7 {[%clk 0:00:01]} 31. f4 {[%clk 0:00:43]}  Bc6 {[%clk 0:00:01]} 32. Rd6 {[%clk 0:00:41]}  exf4+ {[%clk 0:00:01]} 33. Kxf4 {[%clk 0:00:41]}  Re8 {[%clk 0:00:01]} 34. h4 {[%clk 0:00:34]}  Kf7 {[%clk 0:00:02]} 35. Rd4 {[%clk 0:00:31]}  Re7 {[%clk 0:00:02]} 36. g5 {[%clk 0:00:22]}  Rd7 {[%clk 0:00:02]} 37. Rc4 {[%clk 0:00:20]}  Rd5 {[%clk 0:00:02]} 38. gxf6 {[%clk 0:00:18]}  Kxf6 {[%clk 0:00:02]} 39. Bc7 {[%clk 0:00:12]}  Rd3 {[%clk 0:00:02]} 40. Be5+ {[%clk 0:00:11]}  Kf7 {[%clk 0:00:02]} 41. Rc1 {[%clk 0:00:10]}  Bd5 {[%clk 0:00:02]} 42. Rg1 {[%clk 0:00:09]}  Rf3+ {[%clk 0:00:02]} 43. Kg4 {[%clk 0:00:08]}  Rf2 {[%clk 0:00:01]} 44. Rd1 {[%clk 0:00:08]}  Be6+ {[%clk 0:00:01]} 45. Kg3 {[%clk 0:00:08]} 1-0


[Site "https://www.chess.com"]

[Event "Titled Tuesday Blitz April 11 Late 2023"]
[White "Kovalevsky, Stanislav"]
[Black "Prieto Aranguren, Alain"]
[WhiteFideId "13508598"]
[BlackFideId "2268906"]
[WhiteElo "2174"]
[BlackElo "2209"]
[Result "1-0"]
[Round "08"]
[TimeControl "180+2"]
[Date "2023.04.11"]
[WhiteClock "0:00:17"]
[BlackClock "0:00:01"]

1. c4 {[%clk 0:03:00]}  g6 {[%clk 0:02:54]} 2. Nc3 {[%clk 0:03:01]}  Bg7 {[%clk 0:02:55]} 3. g3 {[%clk 0:03:01]}  e5 {[%clk 0:02:54]} 4. Bg2 {[%clk 0:03:02]}  Nf6 {[%clk 0:02:54]} 5. b4 {[%clk 0:03:01]}  O-O {[%clk 0:02:54]} 6. Bb2 {[%clk 0:03:02]}  c6 {[%clk 0:02:52]} 7. e3 {[%clk 0:02:57]}  d5 {[%clk 0:02:49]} 8. cxd5 {[%clk 0:02:54]}  cxd5 {[%clk 0:02:49]} 9. Nge2 {[%clk 0:02:54]}  d4 {[%clk 0:02:48]} 10. Ne4 {[%clk 0:02:46]}  Nxe4 {[%clk 0:02:45]} 11. Bxe4 {[%clk 0:02:47]}  Bh3 {[%clk 0:02:40]} 12. Bxb7 {[%clk 0:02:43]}  Nd7 {[%clk 0:02:39]} 13. Qb3 {[%clk 0:02:38]}  Rb8 {[%clk 0:02:36]} 14. Bd5 {[%clk 0:02:31]}  Nc5 {[%clk 0:02:19]} 15. Qc4 {[%clk 0:02:30]}  Rxb4 {[%clk 0:02:16]} 16. Qxc5 {[%clk 0:02:24]}  Rxb2 {[%clk 0:02:16]} 17. Bb3 {[%clk 0:02:09]}  dxe3 {[%clk 0:02:08]} 18. Qxe3 {[%clk 0:02:10]}  e4 {[%clk 0:02:03]} 19. Rd1 {[%clk 0:02:06]}  Bg2 {[%clk 0:01:58]} 20. Rg1 {[%clk 0:02:04]}  Bf3 {[%clk 0:01:58]} 21. g4 {[%clk 0:01:55]}  Qc7 {[%clk 0:01:51]} 22. Rg3 {[%clk 0:01:51]}  a5 {[%clk 0:01:37]} 23. Rc1 {[%clk 0:01:46]}  Qd7 {[%clk 0:01:23]} 24. Ng1 {[%clk 0:01:27]}  Bd4 {[%clk 0:01:02]} 25. Qf4 {[%clk 0:01:23]}  Re8 {[%clk 0:00:21]} 26. Nxf3 {[%clk 0:00:48]}  exf3+ {[%clk 0:00:21]} 27. Kf1 {[%clk 0:00:48]}  Qb5+ {[%clk 0:00:06]} 28. Kg1 {[%clk 0:00:19]}  Rxb3 {[%clk 0:00:06]} 29. axb3 {[%clk 0:00:18]}  Re2 {[%clk 0:00:05]} 30. Rxf3 {[%clk 0:00:18]}  a4 {[%clk 0:00:02]} 31. Qxf7+ {[%clk 0:00:16]}  Kh8 {[%clk 0:00:01]} 32. Qf8# {[%clk 0:00:17]} 1-0


[Site "https://www.chess.com"]